bitfinex-derivatives/quotes_ETHF0:USTF0_20210407
["timestamp","ask_amount","ask_price","bid_price","bid_amount"]
[1617790005090,59.356,2042.1,2041.5,6.02]
[1617790005886,59.356,2042.1,2041.4,2.90695]
[1617790006288,2.90695,2041.5,2041.4,2.90695]
[1617790008498,2.90695,2041.9,2041.4,2.90695]
[1617790008899,2.90695,2041.9,2041.5,6.03]
[1617790010190,2.90695,2041.9,2041.5,8.03]
[1617790010391,2.90695,2041.9,2041.8,2.90695]
[1617790010591,2.90695,2041.9,2041.8,5.75785]
[1617790011692,0.01434597,2043.1,2041.8,5.75785]
[1617790012293,66.06624334,2043.2,2041.9,2.0]
[1617790012495,66.06624334,2043.2,2042.4,2.90695]
[1617790012693,0.01434578,2043.3,2042.5,6.06]
[1617790013093,0.01435268,2043.6,2042.5,6.06]
[1617790013493,0.01435633,2043.7,2042.5,6.06]
[1617790014494,0.01435633,2043.7,2043.2,2.90695]
[1617790014697,0.0143604,2043.8,2043.2,4.89075]
[1617790015499,0.01436294,2043.9,2043.2,4.89075]
[1617790016299,0.01435959,2044.0,2043.2,4.89075]
[1617790016498,2.90695,2043.3,2043.2,1.9838]
[1617790017099,2.90695,2043.3,2042.4,2.0497]
[1617790017702,2.90695,2043.3,2042.0,2.0]
[1617790017901,2.90695,2043.3,2042.5,5.99]
[1617790018101,2.90695,2043.3,2042.5,2.496]
[1617790018501,2.90695,2043.3,2043.2,2.90695]
[1617790018700,2.90695,2043.3,2043.2,5.61015]
[1617790020805,2.90695,2043.3,2043.2,2.90695]
[1617790021204,2.90695,2043.3,2042.1,2.0]
[1617790021405,65.78705,2043.3,2042.0,2.0]
[1617790021606,65.78705,2043.3,2041.9,77.8834]
[1617790021806,5.83845,2043.3,2041.4,2.0]
[1617790022005,59.975,2042.8,2042.0,6.16]
[1617790022213,62.641,2042.8,2041.5,5.9]
[1617790022408,62.641,2042.8,2042.5,2.90695]
[1617790023006,2.666,2042.8,2042.5,2.90695]
[1617790023207,2.666,2042.8,2041.4,2.0]
[1617790023407,71.4128,2042.5,2041.4,2.0]
[1617790024005,71.4128,2042.5,2041.5,5.9]
[1617790024405,2.90695,2042.3,2042.0,2.90695]
[1617790024606,4.84585,2042.3,2042.0,2.90695]
[1617790025008,4.84585,2042.3,2042.1,3.61]
[1617790025407,4.84585,2042.3,2042.0,2.90695]
[1617790026009,2.90695,2042.3,2042.0,2.90695]
[1617790026609,2.90695,2042.3,2041.4,2.0]
[1617790026810,75.2926,2042.2,2040.9,30.0]
[1617790027010,75.2926,2042.2,2040.8,78.095]
[1617790027411,5.15825,2042.3,2040.9,6.14]
[1617790027620,56.0639,2041.5,2040.9,6.14]
[1617790027812,58.7781,2041.5,2040.6,6.1]
[1617790028411,58.7781,2041.5,2040.3,5.97]
[1617790028611,58.7781,2041.5,2041.4,2.90695]
[1617790029613,58.7781,2041.5,2040.2,2.571]
[1617790030416,58.7781,2041.5,2040.3,6.02]
[1617790030615,58.7781,2041.5,2041.1,2.90695]
[1617790031414,58.7781,2041.5,2039.7,2.0]
[1617790031615,58.7781,2041.5,2039.6,2.571]
[1617790032017,58.7781,2041.5,2039.8,6.06]
[1617790032215,58.7781,2041.5,2039.9,2.0]
[1617790032617,2.7142,2041.5,2040.8,2.90695]
[1617790032817,70.2716,2041.9,2039.9,6.08]
[1617790033016,70.2716,2041.9,2039.7,6.03]
[1617790033017,1.9717,2041.5,2039.7,6.03]
[1617790033417,1.9717,2041.5,2040.0,6.03]
[1617790033616,1.9717,2041.5,2039.7,8.14]
[1617790034017,1.9717,2041.5,2040.1,6.01]
[1617790034218,1.9717,2041.5,2039.7,2.0]
[1617790034417,70.2716,2041.9,2039.8,6.07]
[1617790034618,4.8223,2042.3,2041.2,2.90695]
[1617790034817,2.571,2042.3,2040.5,1.9229]
[1617790035018,81.96,2042.2,2040.6,6.15]
[1617790038818,2.571,2043.1,2040.7,30.0]
[1617790039018,2.571,2043.1,2041.4,72.9491]
[1617790039218,59.0769,2043.3,2041.4,105.1978]
[1617790039418,59.0769,2043.3,2041.5,6.08]
[1617790039620,59.0769,2043.3,2041.5,37.0677]
[1617790039818,59.0769,2043.3,2041.5,36.08]
[1617790040218,56.1454,2043.3,2041.5,36.08]
[1617790041725,56.1454,2043.3,2041.5,38.08]
[1617790042728,56.1454,2043.3,2041.5,36.08]
[1617790044732,56.1454,2043.3,2041.6,2.0]
[1617790045233,56.1454,2043.3,2041.7,6.01]
[1617790045434,56.1454,2043.3,2041.8,2.0]
[1617790045837,56.1454,2043.3,2041.9,5.89]
[1617790046035,56.1454,2043.3,2041.9,35.89]
[1617790048739,56.1454,2043.3,2042.0,2.0]
[1617790048939,56.1454,2043.3,2042.2,2.0]
[1617790049141,56.1454,2043.3,2042.2,41.2066]
[1617790049539,56.1454,2043.3,2042.2,35.0366]
[1617790049740,56.1454,2043.3,2042.3,5.93]
[1617790049941,56.1454,2043.3,2042.4,2.0]
[1617790050440,56.1454,2043.3,2042.5,6.07]
[1617790050841,56.1454,2043.3,2042.4,6.16]
[1617790051444,56.1454,2043.3,2041.8,32.0]
[1617790052144,56.1454,2043.3,2041.9,5.9]
[1617790052344,56.1454,2043.3,2042.0,30.0]
[1617790052644,56.1454,2043.3,2042.1,5.95]
[1617790052944,56.1454,2043.3,2042.2,2.0]
[1617790053144,56.1454,2043.3,2042.4,2.0]
[1617790053344,56.1454,2043.3,2042.4,8.0]
[1617790053546,0.9714,2044.3,2042.4,8.0]
[1617790053744,78.6939,2043.9,2042.6,2.0]
[1617790054145,78.6939,2043.9,2042.6,7.9]
[1617790057547,78.6939,2043.9,2042.5,73.923]
[1617790058646,30.0,2043.9,2041.9,2.0]
[1617790058848,68.3679,2043.2,2041.5,78.0254]
[1617790059047,68.3679,2043.2,2041.5,108.0254]
[1617790059648,68.3679,2043.2,2041.6,8.06]
[1617790062052,68.3679,2043.2,2041.6,38.06]
[1617790062452,2.571,2043.9,2042.6,63.2624]
[1617790062653,2.571,2043.9,2042.6,65.6837]
[1617790063055,2.571,2043.9,2042.6,67.6837]
[1617790063554,2.571,2043.9,2042.7,6.05]
[1617790071259,2.9714,2044.3,2042.7,6.05]
[1617790072160,56.4626,2044.4,2042.7,6.05]
[1617790072360,56.4626,2044.4,2042.8,30.0]
[1617790072759,56.4626,2044.4,2042.9,8.14]
[1617790072961,56.4626,2044.4,2042.9,38.14]
[1617790073261,56.4626,2044.4,2042.9,32.0]
[1617790073662,56.4626,2044.4,2043.0,8.07]
[1617790073860,56.4626,2044.4,2043.1,30.0]
[1617790074061,56.4626,2044.4,2043.1,32.6824]
[1617790074260,56.4626,2044.4,2043.2,6.11]
[1617790075862,56.47696713,2044.4,2043.2,6.11]
[1617790076560,56.47696713,2044.4,2043.2,36.11]
[1617790078361,56.4626,2044.4,2043.2,36.11]
[1617790079265,0.0143717,2044.5,2043.6,77.272]
[1617790079464,0.0143717,2044.5,2043.6,79.3113]
[1617790079668,0.0143717,2044.5,2043.7,6.05]
[1617790080266,80.35917121,2044.6,2043.7,6.05]
[1617790080667,80.3448,2044.6,2043.7,6.05]
[1617790080965,80.35917108,2044.6,2043.7,6.05]
[1617790081567,80.3448,2044.6,2043.7,6.05]
[1617790082466,80.3448,2044.6,2043.7,8.05]
[1617790082868,2.571,2044.8,2043.7,8.05]
[1617790083068,2.571,2044.8,2044.1,66.4037]
[1617790083267,2.571,2044.8,2044.2,6.1]
[1617790084268,67.21085121,2045.3,2044.2,36.1]
[1617790084468,0.01435121,2045.3,2044.2,36.1]
[1617790084670,0.01435053,2045.4,2044.7,80.4697]
[1617790084870,0.01435053,2045.4,2044.7,82.4759]
[1617790085670,0.01434904,2045.5,2044.7,82.4759]
[1617790085869,0.01434904,2045.5,2044.7,82.4559]
[1617790086372,0.01434956,2045.6,2044.7,82.4559]
[1617790086873,0.01438029,2045.2,2044.7,82.4559]
[1617790087074,0.01437972,2045.3,2044.8,5.95]
[1617790087675,0.014379,2045.4,2044.8,5.95]
[1617790088873,0.01437857,2045.5,2045.4,68.9675]
[1617790089675,0.014378,2045.7,2045.4,68.9675]
[1617790089875,0.014378,2045.7,2044.7,32.0062]
[1617790090078,57.3635,2045.2,2044.7,30.0]
[1617790090276,60.4636,2045.2,2044.5,2.0]
[1617790090475,60.4636,2045.2,2044.5,32.0]
[1617790090676,60.4636,2045.2,2044.6,5.96]
[1617790091078,3.1001,2045.2,2044.7,30.0]
[1617790091280,0.01437771,2045.6,2045.5,66.49]
[1617790091879,0.01437751,2045.7,2045.5,66.49]
[1617790092581,0.01437729,2045.6,2045.5,66.49]
[1617790092979,0.01437702,2045.7,2045.5,66.49]
[1617790093380,0.02875502,2045.8,2045.5,66.49]
[1617790093381,0.01437665,2045.8,2045.5,66.49]
[1617790093680,0.28753306,2046.2,2045.5,66.49]
[1617790093681,0.0143246,2046.2,2045.5,66.49]
[1617790094381,0.0143246,2046.2,2045.6,6.12]
[1617790094883,0.01432368,2046.3,2045.6,6.12]
[1617790095583,0.01432443,2046.2,2045.6,6.12]
[1617790096583,0.01432443,2046.2,2045.5,66.49]
[1617790097586,0.01432423,2046.3,2045.6,5.98]
[1617790098985,0.01432999,2046.4,2045.6,5.98]
[1617790100087,2.90695,2045.7,2045.6,5.98]
[1617790101787,2.90695,2045.7,2045.5,2.90695]
[1617790103888,2.90695,2045.7,2045.6,5.9]
[1617790104289,2.90695,2045.7,2045.5,2.90695]
[1617790105789,2.90695,2045.7,2045.6,6.03]
[1617790105989,2.90695,2045.7,2045.5,2.90695]
[1617790109295,2.90695,2045.7,2044.5,30.0]
[1617790109495,68.566,2045.0,2044.4,2.0]
[1617790109696,68.566,2045.0,2044.0,30.0]
[1617790110097,68.566,2045.0,2044.5,2.90695]
[1617790110696,70.4714,2045.0,2044.5,2.90695]
[1617790111098,70.4714,2045.0,2043.8,70.1293]
[1617790111298,1.9054,2045.0,2043.4,2.0]
[1617790111498,74.9713,2044.2,2042.8,57.0535]
[1617790111698,77.9959,2044.2,2042.9,30.0]
[1617790111899,77.9959,2044.2,2043.4,6.06]
[1617790112098,77.9959,2044.2,2043.8,2.90695]
[1617790113700,77.9959,2044.2,2042.8,57.0535]
[1617790114099,2.90695,2043.3,2042.9,2.90695]
[1617790114299,5.05195,2043.3,2042.9,6.15]
[1617790114498,74.4325,2043.2,2042.9,6.15]
[1617790114698,74.4325,2043.2,2042.5,6.09]
[1617790115099,74.4325,2043.2,2042.4,68.9117]
[1617790115502,74.4325,2043.2,2042.5,5.98]
[1617790116101,2.90695,2042.9,2042.8,2.90695]
[1617790117100,2.90695,2042.9,2042.8,8.89695]
[1617790120103,74.4325,2043.2,2042.8,9.88865]
[1617790120504,74.4325,2043.2,2042.8,8.89695]
[1617790120708,74.4325,2043.2,2042.8,38.89695]
[1617790121106,74.4325,2043.2,2042.8,41.90065]
[1617790121305,74.4325,2043.2,2042.8,38.89695]
[1617790121507,74.4325,2043.2,2042.8,8.89695]
[1617790122208,74.4325,2043.2,2043.1,2.90695]
[1617790124114,2.90695,2043.3,2043.1,2.90695]
[1617790124314,2.90695,2043.3,2043.1,60.47485]
[1617790124515,2.90695,2043.3,2043.1,63.19435]
[1617790124917,2.90695,2043.3,2043.2,6.01]
[1617790125318,69.0099,2043.8,2043.2,6.01]
[1617790125518,69.0099,2043.8,2043.3,30.0]
[1617790125721,86.3688,2044.9,2043.3,30.0]
[1617790125722,72.2033,2044.9,2043.8,56.1353]
[1617790125919,72.2033,2044.9,2043.8,58.1462]
[1617790126119,69.6323,2044.9,2043.8,58.1462]
[1617790126322,69.6323,2044.9,2044.5,2.90695]
[1617790126519,69.6323,2044.9,2044.5,4.97785]
[1617790127322,0.0143262,2045.7,2044.5,4.97785]
[1617790127522,0.0143262,2045.7,2044.8,80.5631]
[1617790127723,0.01432503,2045.8,2044.8,80.5631]
[1617790128324,2.58532465,2045.9,2044.9,2.90695]
[1617790128723,2.571,2045.9,2044.9,2.90695]
[1617790129328,0.0143441,2045.8,2044.9,2.90695]
[1617790130224,2.5996882,2045.9,2044.8,80.5631]
[1617790130225,2.58534334,2045.9,2045.2,2.90695]
[1617790132231,2.90695,2045.3,2045.2,2.90695]
[1617790132631,2.90695,2045.3,2044.8,80.5631]
[1617790133434,2.90695,2045.3,2044.9,6.11]
[1617790133633,2.90695,2045.3,2044.9,8.4145]
[1617790134233,0.01434328,2045.9,2045.1,2.90695]
[1617790134434,81.88764237,2046.1,2045.1,2.90695]
[1617790136036,0.01434214,2046.0,2045.1,2.90695]
[1617790136234,2.90695,2045.2,2045.1,2.90695]
[1617790140338,0.02868115,2046.3,2045.1,2.90695]
[1617790140339,0.01433959,2046.3,2045.1,8.80695]
[1617790140538,0.01433959,2046.3,2045.1,11.07105]
[1617790140738,0.01433959,2046.3,2045.9,77.7766]
[1617790140938,0.02867917,2046.4,2045.9,77.7766]
[1617790140939,0.01434199,2046.4,2045.9,80.6012]
[1617790141340,0.01434084,2046.5,2045.9,80.6012]
[1617790142341,2.90695,2046.0,2045.9,80.6012]
[1617790146244,2.90695,2046.0,2045.9,2.8246]
[1617790146444,2.90695,2046.0,2045.8,2.90695]
[1617790150749,2.90695,2046.0,2045.9,6.06]
[1617790150948,2.90695,2046.0,2045.9,8.3084]
[1617790152253,0.0143729,2046.5,2046.4,57.6674]
[1617790152450,2.9213229,2046.5,2046.4,63.31145]
[1617790152950,2.90695,2046.5,2046.4,63.31145]
[1617790153550,2.90695,2046.5,2046.4,60.57435]
[1617790153752,2.92132202,2046.5,2045.9,2.2484]
[1617790153952,76.1075,2046.4,2045.9,2.2484]
[1617790154355,76.12187289,2046.4,2045.9,2.2484]
[1617790154553,2.90695,2046.0,2045.9,5.15535]
[1617790155061,2.90695,2046.0,2045.9,2.90695]
[1617790157758,2.90695,2046.0,2045.9,8.89695]
[1617790164170,2.90695,2046.0,2045.9,2.90695]
[1617790164368,2.90695,2046.0,2045.9,78.65085]
[1617790165369,2.90695,2046.0,2045.9,80.83395]
[1617790165665,2.90695,2046.0,2045.9,86.98395]
[1617790168167,3.87595,2046.0,2045.9,80.83395]
[1617790168366,2.90695,2046.0,2045.9,80.83395]
[1617790172274,2.90695,2046.0,2045.9,78.65085]
[1617790172673,2.90695,2046.0,2045.9,84.66085]
[1617790173675,2.90695,2046.0,2045.9,8.91695]
[1617790174475,2.90695,2046.0,2045.0,57.4283]
[1617790174675,1.8942,2046.2,2045.5,2.90695]
[1617790175080,1.90856837,2046.2,2045.5,2.90695]
[1617790175480,65.2709,2045.8,2045.5,2.90695]
[1617790175678,0.01436883,2046.1,2045.5,2.90695]
[1617790175879,0.01436883,2046.1,2045.8,59.6177]
[1617790176881,2.90695,2045.9,2045.8,62.4271]
[1617790178182,2.90695,2045.9,2045.8,59.6177]
[1617790178781,2.90695,2045.9,2045.8,70.54465]
[1617790178982,2.90695,2045.9,2045.8,68.54465]
[1617790183285,2.90695,2045.9,2045.8,98.54465]
[1617790184585,2.90695,2045.9,2045.8,68.54465]
[1617790188287,2.90695,2045.9,2045.8,65.6377]
[1617790188885,2.90695,2045.9,2045.8,68.54465]
[1617790191190,2.90695,2045.9,2045.0,30.0]
[1617790191390,77.8759,2045.7,2045.1,74.326]
[1617790192991,77.8759,2045.7,2045.5,2.90695]
[1617790194897,2.90695,2045.6,2045.5,2.90695]
[1617790195098,5.74305,2045.6,2045.5,2.90695]
[1617790195497,5.74305,2045.6,2042.7,13.6533]
[1617790195900,74.4547,2044.7,2043.6,78.0215]
[1617790196097,77.5547,2044.7,2043.7,30.0]
[1617790196297,77.5547,2044.7,2043.8,2.0]
[1617790196498,3.1,2044.7,2044.6,60.1654]
[1617790196898,6.00695,2044.7,2044.6,69.05235]
[1617790199303,2.90695,2044.7,2044.6,69.05235]
[1617790200103,2.90695,2044.7,2044.6,8.88695]
[1617790202310,2.90695,2044.7,2044.6,2.90695]
[1617790202510,2.90695,2044.7,2044.5,79.3979]
[1617790210317,2.90695,2044.7,2044.6,5.92]
[1617790210517,2.90695,2044.7,2044.6,38.7402]
[1617790210920,2.90695,2044.7,2044.6,32.8202]
[1617790211121,2.90695,2044.7,2044.6,41.65715]
[1617790211319,0.01440942,2045.7,2044.7,63.2633]
[1617790211521,0.01440942,2045.7,2044.7,93.2633]
[1617790211923,0.01440784,2045.9,2044.8,5.9]
[1617790212121,0.01440784,2045.9,2044.9,30.0]
[1617790212526,0.01440784,2045.9,2045.0,5.92]
[1617790212723,0.01440784,2045.9,2045.1,30.0]
[1617790212925,59.73580743,2046.0,2045.1,32.747]
[1617790213124,59.73580743,2046.0,2045.8,2.90695]
[1617790213326,0.01440743,2046.0,2045.8,4.87315]
[1617790213924,0.01440732,2046.1,2046.0,54.8252]
[1617790214929,0.01440629,2046.2,2046.0,54.8252]
[1617790215129,0.01440629,2046.2,2046.1,2.90695]
[1617790216134,0.01440593,2046.3,2046.1,2.90695]
[1617790217130,2.90695,2046.2,2046.1,2.90695]
[1617790218129,2.90695,2046.2,2046.1,9.06695]
[1617790219734,0.0144136,2046.5,2046.1,9.06695]
[1617790219936,0.0144136,2046.5,2046.2,80.938]
[1617790220134,0.01441325,2046.6,2046.2,80.938]
[1617790220333,0.01441325,2046.6,2046.3,6.01]
[1617790221035,0.01441325,2046.6,2046.5,2.90695]
[1617790221437,0.01441325,2046.6,2046.5,8.83695]
[1617790223638,0.01441282,2046.7,2046.5,8.83695]
[1617790223837,0.01441282,2046.7,2046.5,2.90695]
[1617790224441,0.01441321,2046.6,2046.5,2.90695]
[1617790225438,2.90695,2046.8,2046.5,2.90695]
[1617790225839,0.0144128,2046.7,2046.5,2.90695]
[1617790226445,0.0144128,2046.7,2046.6,6.12]
[1617790227051,2.92136199,2046.8,2046.6,6.12]
[1617790227654,2.92136199,2046.8,2046.5,2.90695]
[1617790228350,2.90695,2046.8,2046.6,5.94]
[1617790228751,2.90695,2046.8,2046.5,2.90695]
[1617790229651,2.90695,2046.8,2046.6,5.94]
[1617790231152,2.90695,2046.8,2046.6,35.94]
[1617790237062,0.0143968,2047.1,2046.6,35.94]
[1617790237263,0.0143968,2047.1,2047.0,2.90695]
[1617790237463,0.0143968,2047.1,2047.0,35.35615]
[1617790237665,2.90695,2047.2,2047.0,41.47615]
[1617790237863,0.01439551,2047.3,2047.0,41.47615]
[1617790238063,0.01439488,2047.4,2047.0,41.47615]
[1617790238262,0.01439488,2047.4,2047.3,69.8631]
[1617790238662,0.01439488,2047.4,2047.3,75.8631]
[1617790238862,0.01439415,2047.5,2047.3,75.8631]
[1617790239262,2.92134415,2047.5,2047.4,2.90695]
[1617790239663,2.90695,2047.5,2047.4,8.77695]
[1617790241669,2.90695,2047.5,2047.4,2.90695]
[1617790242269,2.90695,2047.5,2046.8,68.9024]
[1617790242472,79.7394,2047.4,2046.8,68.9024]
[1617790242869,4.87965,2047.5,2046.5,30.0]
[1617790243072,74.8847,2047.2,2046.9,6.13]
[1617790243270,74.8847,2047.2,2047.1,2.90695]
[1617790243771,74.8847,2047.2,2047.1,9.04695]
[1617790245773,2.90695,2047.5,2047.2,79.0241]
[1617790246176,2.90695,2047.5,2047.2,81.4702]
[1617790246373,2.90695,2047.5,2047.3,6.05]
[1617790247273,2.90695,2047.5,2047.4,2.90695]
[1617790247678,2.90695,2047.5,2047.4,8.95695]
[1617790249077,0.01436595,2047.9,2047.4,8.95695]
[1617790249274,0.01436595,2047.9,2047.8,2.90695]
[1617790249475,0.01436552,2048.0,2047.8,4.89705]
[1617790249676,0.01436552,2048.0,2047.9,70.3375]
[1617790249875,0.01436552,2048.0,2047.8,4.89705]
[1617790250076,0.01436552,2048.0,2047.9,5.88]
[1617790250275,0.01435441,2048.3,2047.9,5.88]
[1617790250676,0.01432232,2048.6,2047.9,35.88]
[1617790250875,0.01432232,2048.6,2048.5,70.1882]
[1617790251076,0.05728929,2048.8,2048.5,72.501]
[1617790251077,0.01432131,2048.8,2048.5,72.501]
[1617790251275,2.90695,2048.6,2048.5,72.501]
[1617790252475,2.90695,2048.6,2048.5,2.3128]
[1617790253075,2.90695,2048.6,2048.2,32.90695]
[1617790253275,2.90695,2048.6,2048.5,2.90695]
[1617790253476,2.90695,2048.6,2048.5,8.91695]
[1617790253677,2.90695,2048.6,2048.5,2.90695]
[1617790254079,2.90695,2048.6,2048.5,8.91695]
[1617790255982,2.90695,2048.6,2048.5,11.03555]
[1617790258083,2.90695,2048.6,2048.5,8.91695]
[1617790260785,2.90695,2048.6,2048.5,38.91695]
[1617790264089,5.98705,2048.6,2048.5,8.91695]
[1617790264489,5.98705,2048.6,2047.9,30.0]
[1617790264689,5.98705,2048.6,2048.5,55.7492]
[1617790265289,5.98705,2048.6,2048.5,61.7392]
[1617790266794,5.98705,2048.6,2048.5,35.99]
[1617790266994,3.0801,2048.6,2048.5,35.99]
[1617790267796,2.90695,2049.4,2048.5,37.99]
[1617790267994,2.90695,2049.4,2048.7,2.0]
[1617790268197,2.90695,2049.4,2048.8,32.0]
[1617790268594,2.90695,2049.4,2048.9,6.08]
[1617790268794,2.90695,2049.4,2048.9,36.08]
[1617790269294,0.01426102,2050.5,2048.9,36.08]
[1617790269495,0.01426102,2050.5,2049.9,75.67095]
[1617790269695,0.01425855,2050.6,2049.9,77.80565]
[1617790270096,2.571,2050.7,2050.0,6.06]
[1617790271196,0.01425722,2051.0,2050.0,6.06]
[1617790271395,64.14537167,2051.1,2050.0,6.06]
[1617790271595,64.14481445,2051.1,2050.2,2.90695]
[1617790272497,64.1163,2051.1,2050.2,2.90695]
[1617790273502,2.90695,2050.3,2050.2,2.90695]
[1617790277302,2.90695,2050.3,2049.5,55.9426]
[1617790277706,77.4938,2050.4,2049.7,2.90695]
[1617790278504,75.3988,2050.4,2049.7,2.90695]
[1617790279705,2.90695,2049.8,2049.7,2.90695]
[1617790281707,2.90695,2049.8,2049.7,2.88695]
[1617790282709,2.90695,2049.8,2048.8,30.0]
[1617790282909,5.71665,2049.8,2048.5,2.0]
[1617790283110,59.1146,2049.4,2048.5,58.8788]
[1617790283310,59.1146,2049.4,2048.6,5.9]
[1617790283709,2.90695,2048.7,2048.6,5.9]
[1617790283911,5.40785,2048.7,2048.6,5.9]
[1617790286311,5.40785,2048.7,2047.7,32.0]
[1617790286312,5.40785,2048.7,2047.7,30.0]
[1617790286515,71.7028,2048.5,2047.7,75.3024]
[1617790287114,71.7028,2048.5,2047.8,6.07]
[1617790287715,71.7028,2048.5,2048.1,2.90695]
[1617790288715,71.7028,2048.5,2048.2,5.92]
[1617790289818,2.90695,2048.3,2048.2,5.92]
[1617790292723,2.90695,2048.3,2048.2,35.92]
[1617790293123,59.6328,2049.0,2048.2,35.92]
[1617790293324,59.6328,2049.0,2048.3,67.865]
[1617790293524,59.6328,2049.0,2048.4,30.0]
[1617790293724,59.6328,2049.0,2048.9,2.90695]
[1617790293925,2.90695,2049.3,2048.9,4.95945]
[1617790294123,2.90695,2049.3,2049.0,62.0462]
[1617790294523,2.90695,2049.3,2049.1,5.88]
[1617790295525,76.987,2049.8,2049.1,5.88]
[1617790295725,76.987,2049.8,2049.6,2.90695]
[1617790295926,2.571,2050.8,2049.6,2.90695]
[1617790296125,78.0198,2051.0,2050.0,72.4236]
[1617790296328,77.0577,2051.0,2050.0,72.4236]
[1617790297328,78.0195,2051.0,2050.1,5.88]
[1617790297528,78.0195,2051.0,2050.1,8.0365]
[1617790297728,78.0195,2051.0,2050.2,2.90695]
[1617790299837,78.0195,2051.0,2050.5,2.90695]
[1617790301534,2.0,2051.2,2050.5,2.90695]
[1617790301740,2.571,2051.6,2050.9,69.8051]
[1617790301937,2.90695,2051.0,2050.9,72.1826]
[1617790302736,2.90695,2051.0,2050.9,72.1673]
[1617790303837,2.90695,2051.0,2050.9,75.07425]
[1617790305140,2.90695,2051.0,2050.9,5.28445]
[1617790305340,2.90695,2051.0,2050.9,2.90695]
[1617790305542,2.90695,2051.0,2050.4,76.5369]
[1617790305742,2.90695,2051.0,2049.3,30.0]
[1617790305939,2.90695,2050.5,2049.6,76.5593]
[1617790306339,2.90695,2050.5,2049.7,5.92]
[1617790307145,2.90695,2050.5,2050.3,76.1197]
[1617790307945,2.90695,2050.5,2050.4,2.90695]
[1617790311250,2.90695,2050.5,2049.0,30.0]
[1617790311450,80.3394,2049.9,2048.8,77.9985]
[1617790311654,83.2035,2049.9,2048.8,77.9985]
[1617790311855,83.2035,2049.9,2049.2,2.90695]
[1617790313856,2.90695,2049.3,2048.8,77.9985]
[1617790314057,5.73885,2049.3,2048.8,77.9985]
[1617790315958,2.90695,2048.9,2048.8,77.9985]
[1617790316157,2.90695,2048.9,2048.7,2.90695]
[1617790320367,2.90695,2048.9,2048.8,5.87]
[1617790320765,2.90695,2048.9,2048.7,2.90695]
[1617790321565,2.90695,2048.9,2048.7,66.20855]
[1617790323969,2.90695,2048.9,2047.8,2.0]
[1617790324168,68.3241,2048.7,2047.9,62.191]
[1617790324371,71.13,2048.7,2047.9,62.191]
[1617790324769,71.13,2048.7,2046.9,88.8791]
[1617790324770,2.8059,2048.7,2046.9,13.3614]
[1617790324969,57.6565,2048.0,2046.9,88.2444]
[1617790325171,59.8817,2048.0,2046.9,88.2444]
[1617790325371,59.8817,2048.0,2047.0,6.03]
[1617790325586,60.8528,2048.0,2047.0,6.03]
[1617790325769,59.8817,2048.0,2047.0,6.03]
[1617790325970,59.8817,2048.0,2047.8,2.90695]
[1617790326770,59.8817,2048.0,2046.9,58.2444]
[1617790327571,59.8817,2048.0,2047.0,5.9]
[1617790328175,2.2252,2048.0,2047.5,2.90695]
[1617790328374,2.2252,2048.0,2047.6,66.8804]
[1617790329775,68.3467,2048.2,2047.6,66.8804]
[1617790330175,2.90695,2047.7,2047.6,66.8804]
[1617790330575,2.90695,2047.7,2047.6,72.9304]
[1617790332177,0.02870543,2049.1,2047.7,72.1559]
[1617790332377,0.02870543,2049.1,2047.7,2.5802]
[1617790332578,0.02870543,2049.1,2047.8,35.98]
[1617790332778,2.571,2049.3,2047.8,35.98]
[1617790333178,2.571,2049.3,2047.8,37.98]
[1617790333379,2.571,2049.3,2049.2,57.0905]
[1617790334177,2.90695,2049.3,2049.2,57.0905]
[1617790337982,2.90695,2049.3,2048.1,32.0]
[1617790338181,59.7547,2049.5,2049.1,2.90695]
[1617790338881,0.02871466,2049.8,2049.1,2.90695]
[1617790339081,0.02871466,2049.8,2049.1,82.32375]
[1617790340183,2.90695,2049.2,2049.1,82.32375]
[1617790342386,0.02879181,2049.4,2049.1,82.32375]
[1617790342685,0.05758361,2049.5,2049.1,82.32375]
[1617790342686,0.02878962,2049.5,2049.1,82.32375]
[1617790342985,0.02878804,2049.6,2049.1,82.32375]
[1617790343185,0.02878804,2049.6,2049.2,6.04]
[1617790343386,0.0287874,2049.7,2049.2,8.2597]
[1617790344386,0.0287874,2049.7,2049.6,2.90695]
[1617790345787,0.02878653,2049.8,2049.6,2.90695]
[1617790347790,0.02879328,2049.9,2049.6,2.90695]
[1617790348089,0.02879341,2049.8,2049.6,2.90695]
[1617790348490,0.02879301,2049.9,2049.6,2.90695]
[1617790348692,0.02879301,2049.9,2049.8,75.2256]
[1617790348894,0.02879301,2049.9,2049.6,2.89695]
[1617790349096,66.6743,2049.7,2048.9,75.2733]
[1617790349496,66.70309559,2049.7,2048.9,75.2733]
[1617790349897,0.02879584,2049.6,2048.9,75.2733]
[1617790350398,0.02879584,2049.6,2049.4,2.90695]
[1617790351201,0.02879735,2049.5,2049.4,2.90695]
[1617790351802,0.02879779,2049.6,2049.4,2.90695]
[1617790352204,0.02879861,2049.5,2049.4,2.90695]
[1617790352401,2.93574861,2049.5,2049.4,2.90695]
[1617790352602,2.96459816,2049.5,2049.4,2.90695]